bitfinex/quotes_BTCUSD_20241116
["timestamp","ask_amount","ask_price","bid_price","bid_amount"]
[1731723627246,0.27345242,91649.0,91637.0,0.109125]
[1731723627556,0.27345242,91649.0,91630.0,0.1]
[1731723627723,0.109115,91647.0,91633.0,0.109129]
[1731723627943,0.109115,91647.0,91631.0,0.218266]
[1731723627944,0.109125,91638.0,91624.0,0.109141]
[1731723628206,0.109125,91638.0,91613.0,0.28774881]
[1731723628207,0.21818955,91637.0,91627.0,0.16438987]
[1731723628415,0.0777,91635.0,91613.0,0.16438987]
[1731723628644,0.10906255,91634.0,91613.0,0.16438987]
[1731723628826,0.109136,91629.0,91613.0,0.38269787]
[1731723629037,0.10906255,91628.0,91615.0,0.109151]
[1731723629274,0.10906255,91628.0,91607.0,0.218323]
[1731723629275,0.264976,91627.0,91607.0,0.218323]
[1731723629490,0.264976,91627.0,91606.0,0.218325]
[1731723629491,0.10914,91625.0,91613.0,0.109154]
[1731723629699,0.0467,91641.0,91621.0,0.12335894]
[1731723629923,0.16438987,91628.0,91621.0,0.12335894]
[1731723630148,0.10906255,91630.0,91621.0,0.12335894]
[1731723630374,0.10906255,91630.0,91626.0,0.109138]
[1731723630595,0.16438987,91639.0,91622.0,0.1]
[1731723630824,0.0467,91641.0,91627.0,0.218276]
[1731723631056,0.0777,91647.0,91640.0,0.109121]
[1731723631284,0.16438987,91637.0,91636.0,0.209127]
[1731723631512,0.10906255,91646.0,91636.0,0.209127]
[1731723631513,0.10906255,91646.0,91640.0,0.109122]
[1731723631735,0.10906255,91646.0,91643.0,0.109118]
[1731723631997,0.0777,91647.0,91638.0,0.21825]
[1731723631998,0.0777,91647.0,91645.0,0.12335894]
[1731723632224,0.0008562,91649.0,91648.0,0.209113]
[1731723633738,0.0008562,91649.0,91648.0,0.1]
[1731723633956,0.0008562,91649.0,91635.0,0.12335894]
[1731723634173,0.0008562,91649.0,91638.0,0.1]
[1731723634397,0.0008562,91649.0,91637.0,0.218252]
[1731723634398,0.0008562,91649.0,91640.0,0.1]
[1731723634605,0.10906255,91648.0,91640.0,0.1]
[1731723634825,0.10906255,91648.0,91643.0,0.1]
[1731723635060,0.00303316,91647.0,91643.0,0.1]
[1731723635929,0.00303316,91647.0,91641.0,0.209121]
[1731723636141,0.00303316,91647.0,91638.0,0.1]
[1731723636369,0.0008562,91649.0,91634.0,0.0218181]
[1731723636370,0.10906255,91646.0,91639.0,0.109122]
[1731723636580,0.10906255,91646.0,91639.0,0.109123]
[1731723636813,0.00324463,91645.0,91639.0,0.109123]
[1731723637040,0.00324463,91645.0,91636.0,0.1]
[1731723637269,0.00324463,91645.0,91636.0,0.209126]
[1731723637486,0.00324463,91645.0,91634.0,0.0218181]
[1731723637745,0.10906255,91646.0,91637.0,0.109125]
[1731723637959,0.0008562,91649.0,91634.0,0.0218181]
[1731723637960,0.27345242,91638.0,91634.0,0.0218181]
[1731723638182,0.27345242,91638.0,91576.0,0.16610287]
[1731723638183,0.0777,91609.0,91607.0,0.16438987]
[1731723638610,0.0777,91609.0,91597.0,0.16438987]
[1731723638824,0.10906255,91618.0,91601.0,0.12335894]
[1731723639062,0.16438987,91613.0,91601.0,0.12335894]
[1731723639274,0.16438987,91613.0,91609.0,0.109158]
[1731723639488,0.16438987,91613.0,91598.0,0.12335894]
[1731723639694,0.10906255,91612.0,91605.0,0.218328]
[1731723639906,0.10906255,91612.0,91606.0,0.109162]
[1731723640362,0.10906255,91612.0,91607.0,0.109161]
[1731723640570,0.10906255,91612.0,91611.0,0.109157]
[1731723640787,0.10906255,91612.0,91609.0,0.109159]
[1731723641427,0.10906255,91612.0,91607.0,0.109161]
[1731723641857,0.0071124,91611.0,91607.0,0.109161]
[1731723642100,0.10906255,91612.0,91605.0,0.318328]
[1731723642309,0.10906255,91612.0,91607.0,0.109161]
[1731723642516,0.00857544,91611.0,91607.0,0.109161]
[1731723642739,0.00857544,91611.0,91603.0,0.109166]
[1731723643045,0.00857544,91611.0,91603.0,0.1]
[1731723643247,0.00857544,91611.0,91601.0,0.1108794]
[1731723643248,0.27345242,91610.0,91601.0,0.0017114]
[1731723643473,0.10906255,91610.0,91601.0,0.0017114]
[1731723643680,0.218321,91608.0,91601.0,0.0017114]
[1731723643886,0.32738555,91607.0,91601.0,0.0017114]
[1731723644103,0.00857544,91611.0,91603.0,0.1]
[1731723644388,0.00857544,91611.0,91610.0,0.109158]
[1731723644625,0.16438987,91634.0,91610.0,0.1]
[1731723644626,0.16438987,91621.0,91610.0,0.1]
[1731723644829,0.16438987,91634.0,91617.0,0.1]
[1731723644830,0.10906255,91633.0,91617.0,0.1]
[1731723645045,0.17152371,91620.0,91619.0,0.109146]
[1731723645259,0.109134,91630.0,91617.0,0.209149]
[1731723645491,0.10906255,91629.0,91617.0,0.209149]
[1731723645729,0.0071529,91628.0,91617.0,0.209149]
[1731723645939,0.10906255,91627.0,91626.0,0.02]
[1731723646388,0.11621307,91627.0,91626.0,0.02]
[1731723647712,0.11621307,91627.0,91626.0,0.129139]
[1731723647713,0.00715052,91627.0,91626.0,0.129139]
[1731723648192,0.0467,91643.0,91627.0,0.327414]
[1731723648427,0.0467,91643.0,91632.0,0.109131]
[1731723648428,0.10906255,91642.0,91632.0,0.109131]
[1731723648638,0.16938987,91635.0,91626.0,0.02]
[1731723648866,0.109133,91631.0,91626.0,0.02]
[1731723649080,0.32732155,91634.0,91626.0,0.02]
[1731723649081,0.109136,91629.0,91626.0,0.02]
[1731723649293,0.11506942,91628.0,91626.0,0.02]
[1731723649930,0.21920642,91628.0,91626.0,0.02]
[1731723650361,0.109138,91627.0,91626.0,0.02]
[1731723650576,0.21820055,91627.0,91614.0,0.1]
[1731723650797,0.21820155,91626.0,91614.0,0.1]
[1731723651032,0.21820155,91626.0,91614.0,0.209153]
[1731723651244,0.00599752,91625.0,91614.0,0.209153]
[1731723651458,0.10906255,91624.0,91611.0,0.209156]
[1731723651695,0.10906255,91624.0,91614.0,0.109153]
[1731723651904,0.00598992,91623.0,91614.0,0.109153]
[1731723652192,0.10906255,91622.0,91615.0,0.1]
[1731723652414,0.0854,91621.0,91615.0,0.1]
[1731723652624,0.10906255,91620.0,91615.0,0.1]
[1731723652829,0.21820855,91620.0,91615.0,0.1]
[1731723653042,0.00596472,91619.0,91618.0,0.109148]
[1731723653255,0.00596472,91619.0,91618.0,0.209148]
[1731723653585,0.0787,91632.0,91618.0,0.209148]
[1731723653586,0.0787,91632.0,91628.0,0.109136]
[1731723653793,0.10906255,91631.0,91629.0,0.109135]
[1731723654010,0.11507389,91631.0,91626.0,0.218276]
[1731723654220,0.11507389,91631.0,91627.0,0.109137]
[1731723654427,0.11507389,91631.0,91622.0,0.218288]
[1731723654637,0.11507389,91631.0,91624.0,0.109141]
[1731723654882,0.11507389,91631.0,91622.0,0.109143]
[1731723655295,0.11507389,91631.0,91621.0,0.21829]
[1731723655502,0.11507389,91631.0,91622.0,0.218288]
[1731723655705,0.11507389,91631.0,91625.0,0.109139]
[1731723656124,0.11507389,91631.0,91613.0,0.1]
[1731723656321,0.11507389,91631.0,91623.0,0.16438987]
[1731723656524,0.11507389,91631.0,91630.0,0.109134]
[1731723656747,0.10906255,91631.0,91630.0,0.109134]
[1731723656935,0.0787,91642.0,91640.0,0.109122]
[1731723656936,0.00863593,91641.0,91640.0,0.109122]
[1731723657161,0.27345242,91641.0,91640.0,0.109122]
[1731723657417,0.27345242,91641.0,91640.0,0.209122]
[1731723657418,0.10906255,91641.0,91640.0,0.209122]
[1731723657615,0.11511186,91641.0,91640.0,0.209122]
[1731723657831,0.10906255,91641.0,91640.0,0.209122]
[1731723658760,0.0008562,91649.0,91640.0,0.209122]
[1731723658978,0.0008562,91649.0,91648.0,0.109113]
[1731723659851,0.0008562,91649.0,91641.0,0.218242]
[1731723660107,0.0008562,91649.0,91646.0,0.109115]
[1731723660531,0.005,91647.0,91634.0,0.1]
[1731723660749,0.10906255,91646.0,91645.0,0.109116]
[1731723660973,0.11515668,91646.0,91645.0,0.109116]
[1731723662313,0.10906255,91646.0,91645.0,0.109116]
[1731723662986,0.11515668,91646.0,91645.0,0.109116]
[1731723664122,0.11515668,91646.0,91639.0,0.218247]
[1731723664345,0.005,91644.0,91634.0,0.109129]
[1731723664555,0.005,91644.0,91630.0,0.218267]
[1731723664556,0.10906255,91643.0,91635.0,0.109127]
[1731723664761,0.10906255,91643.0,91630.0,0.218267]
[1731723664762,0.11514485,91643.0,91636.0,0.209127]
[1731723664972,0.11514485,91643.0,91636.0,0.1]
[1731723665215,0.11514485,91643.0,91635.0,0.109128]
[1731723665490,0.11514485,91643.0,91636.0,0.109126]
[1731723665896,0.11514485,91643.0,91638.0,0.109124]
[1731723666114,0.11514485,91643.0,91634.0,0.218259]
[1731723666337,0.11514485,91643.0,91628.0,0.16610207]
[1731723666338,0.005,91639.0,91628.0,0.0017122]
[1731723666607,0.005,91637.0,91628.0,0.0017122]
[1731723666818,0.002,91633.0,91628.0,0.0017122]
[1731723667024,0.10906255,91632.0,91628.0,0.0017122]
[1731723667269,0.115097,91632.0,91628.0,0.0017122]
[1731723668814,0.114135,91629.0,91628.0,0.0007122]
[1731723669070,0.22319755,91629.0,91628.0,0.0007122]
[1731723669324,0.12007756,91629.0,91628.0,0.0007122]
[1731723670204,0.12007756,91629.0,91628.0,0.00064762]
[1731723670636,0.22921256,91629.0,91628.0,0.00064762]
[1731723670849,0.30791256,91629.0,91628.0,0.00064762]
[1731723672190,0.30991256,91629.0,91628.0,0.00064762]
[1731723672415,0.38301256,91629.0,91628.0,0.00064762]
[1731723674661,0.38101256,91629.0,91628.0,0.00064762]
[1731723674878,0.38301256,91629.0,91628.0,0.00064762]
[1731723675566,0.39161042,91629.0,91628.0,0.00064762]
[1731723675802,0.40020775,91629.0,91628.0,0.00064762]
[1731723676008,0.39520775,91629.0,91628.0,0.00064762]
[1731723676457,0.40020775,91629.0,91628.0,0.00064762]
[1731723676930,0.63262924,91629.0,91628.0,0.00064762]
[1731723677369,0.52356669,91629.0,91628.0,0.00064762]
[1731723678727,0.51496936,91629.0,91628.0,0.00064762]
[1731723678936,0.52355852,91629.0,91628.0,0.00064762]
[1731723679154,0.221752,91615.0,91614.0,0.0017114]
[1731723679407,0.38450371,91615.0,91614.0,0.0017114]
[1731723679615,0.39043046,91615.0,91614.0,0.0017114]
[1731723680308,0.38843046,91615.0,91614.0,0.0017114]
[1731723680520,0.39043046,91615.0,91614.0,0.0017114]
[1731723680977,0.43523493,91615.0,91614.0,0.0017114]
[1731723682109,0.42664577,91615.0,91614.0,0.0017114]
[1731723682317,0.43522666,91615.0,91614.0,0.0017114]
[1731723683409,0.42664577,91615.0,91614.0,0.0017114]
[1731723687692,0.42164577,91615.0,91614.0,0.0017114]
[1731723687929,0.42664577,91615.0,91614.0,0.0017114]
[1731723688664,0.30394577,91615.0,91614.0,0.0017114]
[1731723691248,0.30194577,91615.0,91614.0,0.0017114]
[1731723691472,0.30394577,91615.0,91614.0,0.0017114]
[1731723692558,0.90125565,91615.0,91614.0,0.0017114]
[1731723692793,0.90980053,91615.0,91614.0,0.0017114]
[1731723694094,0.99210053,91615.0,91614.0,0.0017114]
[1731723694307,0.98119065,91615.0,91614.0,0.0017114]
[1731723694531,0.98355632,91615.0,91614.0,0.0017114]
[1731723694990,0.002,91577.0,91566.0,0.04454923]
[1731723695220,0.11106255,91577.0,91576.0,0.37530087]
[1731723695430,0.11106255,91577.0,91576.0,0.210911]
[1731723696588,0.10906255,91577.0,91576.0,0.210911]
[1731723696807,0.11106255,91577.0,91576.0,0.001713]
[1731723697241,0.11709566,91577.0,91576.0,0.001713]
[1731723699737,0.25429266,91577.0,91576.0,0.001713]
[1731723700616,0.14309566,91577.0,91576.0,0.001713]
[1731723700838,0.14509566,91577.0,91576.0,0.001713]
[1731723701463,0.25429266,91577.0,91576.0,0.001713]
[1731723702100,0.26520504,91577.0,91576.0,0.001713]
[1731723702519,0.27377283,91577.0,91576.0,0.001713]
[1731723702728,0.26286045,91577.0,91576.0,0.001713]
[1731723702939,0.002,91558.0,91552.0,0.16438987]
[1731723703197,0.10906255,91557.0,91552.0,0.16438987]
[1731723703397,0.002,91551.0,91542.0,0.02144716]
[1731723703612,0.002,91551.0,91550.0,0.109229]
[1731723704325,0.11106255,91551.0,91548.0,0.109231]
[1731723704533,0.002,91548.0,91547.0,0.109232]
[1731723704743,0.002,91548.0,91544.0,0.109235]
[1731723704744,0.11106255,91548.0,91544.0,0.109235]
[1731723704956,0.10906255,91547.0,91546.0,0.109234]
[1731723705226,0.11693697,91547.0,91546.0,0.109234]
[1731723705431,0.11106255,91547.0,91546.0,0.109234]
[1731723708640,0.10906255,91547.0,91546.0,0.109234]
[1731723708891,0.16438987,91563.0,91562.0,0.109215]
[1731723709110,0.27345242,91563.0,91562.0,0.109215]
[1731723709288,0.11499602,91563.0,91562.0,0.109215]
[1731723709771,0.10906255,91563.0,91562.0,0.185415]
[1731723710251,0.16438987,91586.0,91585.0,0.109188]
[1731723710476,0.28027197,91586.0,91585.0,0.109188]
[1731723710727,0.28629288,91586.0,91585.0,0.109188]
[1731723711167,0.12190301,91586.0,91585.0,0.109188]
[1731723711669,0.12390301,91586.0,91585.0,0.109188]
[1731723712991,0.002,91583.0,91569.0,0.1]
[1731723713202,0.1158821,91582.0,91577.0,0.109197]
[1731723713421,0.00681955,91581.0,91577.0,0.109196]
[1731723713654,0.1158821,91580.0,91578.0,0.109196]
[1731723713896,0.12186905,91580.0,91579.0,0.109195]
[1731723714108,0.12186927,91580.0,91579.0,0.109195]
[1731723715035,0.12186923,91580.0,91579.0,0.109195]
[1731723717020,0.1150495,91580.0,91579.0,0.109195]
[1731723717443,0.12186922,91580.0,91579.0,0.109195]
[1731723718117,0.1150495,91580.0,91579.0,0.109195]
[1731723718560,0.12186921,91580.0,91579.0,0.109195]
[1731723718955,0.1150495,91580.0,91579.0,0.109195]
[1731723719463,0.1150495,91580.0,91565.0,0.218422]
[1731723719464,0.002,91572.0,91562.0,0.1762]
[1731723719690,0.002,91572.0,91571.0,0.109204]
[1731723720867,0.002,91572.0,91569.0,0.218412]
[1731723721091,0.29428,91584.0,91558.0,0.21844]
[1731723721092,0.002,91569.0,91568.0,0.109208]
[1731723722031,0.002,91570.0,91569.0,0.109207]
[1731723722239,0.11106255,91570.0,91569.0,0.109207]
[1731723722494,0.10906255,91570.0,91569.0,0.109207]
[1731723722716,0.11500958,91570.0,91569.0,0.109207]
[1731723724937,0.11586798,91570.0,91569.0,0.109207]
[1731723726302,0.11586798,91570.0,91569.0,0.234107]
[1731723726716,0.10992095,91570.0,91569.0,0.184907]
[1731723727880,0.10992095,91570.0,91569.0,0.109207]
[1731723730558,0.10992095,91570.0,91569.0,0.10641433]
[1731723731427,0.0008584,91570.0,91569.0,0.10641433]
[1731723736638,0.0008584,91570.0,91569.0,0.15147497]
[1731723737556,0.0008584,91570.0,91569.0,0.25147497]
[1731723739769,0.10992095,91570.0,91569.0,0.10641433]
[1731723739982,0.11192095,91570.0,91569.0,0.10641433]
[1731723740195,0.11619764,91570.0,91569.0,0.10641433]
[1731723740894,0.11819764,91570.0,91569.0,0.10641433]
[1731723742191,0.11619764,91570.0,91569.0,0.10641433]
[1731723742396,0.12501775,91570.0,91569.0,0.10641433]
[1731723742824,0.12301775,91570.0,91569.0,0.10641433]
[1731723743746,0.00482011,91570.0,91569.0,0.10641433]
[1731723743965,0.1201519,91570.0,91569.0,0.10641433]
[1731723744174,0.11388266,91570.0,91569.0,0.10641433]
[1731723744391,0.11910578,91570.0,91569.0,0.10641433]
[1731723745499,0.11428567,91570.0,91569.0,0.10641433]
[1731723746210,0.11428567,91570.0,91568.0,0.02]
[1731723746435,0.22526955,91569.0,91568.0,0.02]
[1731723746649,0.23386049,91569.0,91568.0,0.02]
[1731723746862,0.23048829,91569.0,91568.0,0.02]
[1731723747072,0.002,91559.0,91558.0,0.109219]
[1731723747295,0.10906255,91559.0,91558.0,0.109219]
[1731723748142,0.0008582,91570.0,91558.0,0.12335894]
[1731723748358,0.0008582,91570.0,91556.0,0.218444]
[1731723748359,0.0008582,91570.0,91569.0,0.109207]
[1731723749256,0.0008582,91570.0,91569.0,0.209207]
[1731723750623,0.0008582,91570.0,91569.0,0.25328815]
[1731723751700,0.0008582,91570.0,91569.0,0.04408115]
[1731723752115,0.0008582,91570.0,91567.0,0.218417]
[1731723752379,0.0008582,91570.0,91569.0,0.109207]
[1731723753719,0.0008582,91570.0,91569.0,0.209207]
[1731723755640,0.0008582,91570.0,91569.0,0.30655894]
[1731723755849,0.0008582,91570.0,91569.0,0.209207]
[1731723759515,0.0008582,91570.0,91569.0,0.2109234]
[1731723761579,0.0008582,91570.0,91569.0,0.62893742]
[1731723761790,2e-07,91570.0,91569.0,0.48288157]
[1731723762419,2e-07,91570.0,91569.0,0.77399492]
[1731723762669,2e-07,91570.0,91569.0,0.51483153]
[1731723762871,0.16438987,91589.0,91588.0,0.33754294]
[1731723763086,0.16438987,91589.0,91588.0,0.58574447]
[1731723763295,0.16438987,91599.0,91598.0,0.33253094]
[1731723763475,0.16438987,91599.0,91598.0,0.45483094]
[1731723763727,0.00511958,91599.0,91598.0,0.45483094]
[1731723763950,0.0008577,91629.0,91613.0,0.109154]
[1731723764412,0.16954747,91614.0,91613.0,0.109154]
[1731723764632,0.0051576,91614.0,91613.0,0.109154]
[1731723765074,0.0051576,91614.0,91611.0,0.218312]
[1731723765075,0.0008577,91629.0,91611.0,0.218312]
[1731723765402,0.10906255,91614.0,91598.0,0.0659889]
[1731723765626,0.0799,91612.0,91611.0,0.109157]
[1731723766072,0.08527898,91612.0,91611.0,0.109157]
[1731723766949,0.00537898,91612.0,91611.0,0.109157]
[1731723768079,0.218315,91611.0,91601.0,0.15333099]
[1731723768294,0.218315,91611.0,91603.0,0.1]
[1731723768295,0.10916,91609.0,91603.0,0.1]
[1731723768513,0.15736255,91608.0,91606.0,0.109162]
[1731723768717,0.16272264,91608.0,91604.0,0.109165]
[1731723768932,0.16272264,91608.0,91603.0,0.1]
[1731723769226,0.16272264,91608.0,91606.0,0.109161]
[1731723769652,0.16272264,91608.0,91605.0,0.109164]
[1731723769853,0.16272264,91608.0,91606.0,0.109162]
[1731723770065,0.16472264,91608.0,91606.0,0.109162]
[1731723770277,0.16472264,91608.0,91602.0,0.1]
[1731723770489,0.16272264,91608.0,91607.0,0.109161]
[1731723772203,0.0765,91606.0,91590.0,0.02210865]
[1731723772417,0.002,91602.0,91598.0,0.1]
[1731723772652,0.002,91598.0,91590.0,0.02210865]
[1731723772881,0.002,91598.0,91581.0,0.218384]
[1731723772882,0.109179,91593.0,91586.0,0.109186]
[1731723773124,0.29474255,91592.0,91586.0,0.109186]
[1731723773333,0.0483,91591.0,91587.0,0.109185]
[1731723773537,0.10906255,91590.0,91587.0,0.109185]
[1731723773747,0.11435078,91590.0,91581.0,0.218384]
[1731723773962,0.22353278,91590.0,91584.0,0.109189]
[1731723774393,0.11435078,91590.0,91585.0,0.109188]
[1731723774812,0.22353278,91590.0,91575.0,0.1]
[1731723775031,0.22353278,91590.0,91574.0,0.2184]
[1731723775252,0.23053278,91590.0,91574.0,0.2184]
[1731723775932,0.23053278,91590.0,91581.0,0.109192]
[1731723776148,0.23053278,91590.0,91579.0,0.109194]
[1731723776353,0.23053278,91590.0,91580.0,0.109193]
[1731723776585,0.23053278,91590.0,91569.0,0.0017164]
[1731723776586,0.39492265,91590.0,91572.0,0.1]
[1731723776850,0.23053278,91590.0,91572.0,0.1]
[1731723777067,0.23053278,91590.0,91569.0,0.0017164]
[1731723777283,0.23053278,91590.0,91573.0,0.1]
[1731723777503,0.31203278,91590.0,91569.0,0.0017164]
[1731723778191,0.31203278,91590.0,91571.0,0.109204]
[1731723778630,0.31203278,91590.0,91572.0,0.109203]
[1731723779473,0.31203278,91590.0,91569.0,0.0017164]
[1731723779692,0.31203278,91590.0,91574.0,0.109201]
[1731723780819,0.31203278,91590.0,91569.0,0.0017164]
[1731723781024,0.31203278,91590.0,91573.0,0.109201]
[1731723782157,0.31203278,91590.0,91569.0,0.0017164]
[1731723782368,0.48333278,91590.0,91569.0,0.0017164]
[1731723782809,0.241006,91570.0,91569.0,0.0017164]
[1731723783038,0.35006855,91570.0,91569.0,0.0017164]
[1731723783256,0.35523643,91570.0,91569.0,0.0017164]
[1731723783678,0.36023643,91570.0,91569.0,0.0017164]
[1731723784369,0.35983743,91570.0,91569.0,0.0017164]
[1731723790208,0.38283743,91570.0,91569.0,0.0017164]
[1731723792180,0.92203743,91570.0,91569.0,0.0017164]
[1731723792852,1.13109998,91570.0,91569.0,0.0017164]
[1731723794580,1.13109998,91570.0,91546.0,0.0017154]
[1731723794581,0.24543,91550.0,91546.0,0.0017154]
[1731723794783,0.38253246,91550.0,91546.0,0.0017154]
[1731723796069,0.38379798,91550.0,91546.0,0.0017154]
[1731723797761,0.42795029,91550.0,91546.0,0.0017154]
[1731723801223,0.42668477,91550.0,91546.0,0.0017154]
[1731723801577,0.4279144,91550.0,91546.0,0.0017154]
[1731723802258,0.42668477,91550.0,91546.0,0.0017154]
[1731723802485,0.11410246,91550.0,91546.0,0.0017154]
[1731723802702,0.11410246,91550.0,91549.0,0.1109478]
[1731723803395,0.10906255,91550.0,91549.0,0.1109478]
[1731723808240,0.16438987,91566.0,91565.0,0.109212]
[1731723808474,0.27345242,91566.0,91550.0,0.0777]
[1731723808680,0.16438987,91566.0,91565.0,0.109212]
[1731723808910,0.16935508,91566.0,91565.0,0.109212]
[1731723809086,0.17035508,91566.0,91565.0,0.109212]
[1731723809311,0.11502776,91566.0,91565.0,0.109212]
[1731723809739,0.11502776,91566.0,91564.0,0.109213]
[1731723809946,0.11502776,91566.0,91558.0,0.21844]
[1731723809947,0.11502776,91566.0,91565.0,0.109212]
[1731723810770,0.005,91560.0,91541.0,0.218479]
[1731723811038,0.005,91557.0,91542.0,0.1]
[1731723811248,0.005,91557.0,91538.0,0.1]
[1731723811249,0.11083,91550.0,91538.0,0.1]
[1731723811482,0.21989255,91550.0,91542.0,0.04477751]
[1731723811695,0.22493779,91550.0,91542.0,0.04477751]
[1731723811922,0.22493779,91550.0,91536.0,0.001715]
[1731723811923,0.23433679,91550.0,91536.0,0.001715]
[1731723812146,0.23493779,91550.0,91536.0,0.001715]
[1731723812360,0.23493779,91550.0,91536.0,0.11096]
[1731723812574,0.23493779,91550.0,91537.0,0.109245]
[1731723812996,0.23493779,91550.0,91538.0,0.109244]
[1731723813203,0.23493779,91550.0,91536.0,0.001715]
[1731723813204,0.28043779,91550.0,91536.0,0.001715]
[1731723814281,0.30343779,91550.0,91536.0,0.001715]
[1731723815376,0.38503779,91550.0,91536.0,0.001715]
[1731723816245,0.48503779,91550.0,91536.0,0.001715]
[1731723816461,0.011601,91547.0,91536.0,0.001715]
[1731723816681,0.35289655,91547.0,91536.0,0.001715]
[1731723816907,0.48490236,91547.0,91536.0,0.001715]
[1731723818048,0.5293515,91547.0,91536.0,0.001715]
[1731723818717,0.63841405,91547.0,91536.0,0.001715]
[1731723818917,0.5293515,91547.0,91536.0,0.001715]
[1731723819157,1.0685515,91547.0,91536.0,0.001715]
[1731723820732,1.16880101,91547.0,91536.0,0.001715]
[1731723820970,1.06992551,91547.0,91536.0,0.001715]
[1731723821188,1.17898806,91547.0,91536.0,0.001715]
[1731723821598,0.49430094,91540.0,91536.0,0.001715]
[1731723821813,0.60336349,91540.0,91536.0,0.001715]
[1731723822031,0.60831173,91540.0,91536.0,0.001715]
[1731723822250,0.64455757,91540.0,91536.0,0.001715]
[1731723822514,0.6096266,91540.0,91536.0,0.001715]
[1731723825949,1.1488266,91540.0,91536.0,0.001715]
[1731723826173,1.1438266,91540.0,91536.0,0.001715]
[1731723826406,1.00246766,91540.0,91536.0,0.001715]
[1731723826609,0.77536766,91540.0,91536.0,0.001715]
[1731723827269,0.23456666,91540.0,91536.0,0.001715]
[1731723827482,0.23616766,91540.0,91536.0,0.001715]
[1731723828786,0.25916766,91540.0,91536.0,0.001715]
[1731723829401,0.23616766,91540.0,91536.0,0.001715]
[1731723832282,0.25916766,91540.0,91536.0,0.001715]
[1731723834239,0.34163718,91540.0,91536.0,0.001715]
[1731723834443,0.56813718,91540.0,91536.0,0.001715]
[1731723834916,0.66583505,91540.0,91536.0,0.001715]
[1731723835144,1.20503505,91540.0,91536.0,0.001715]
[1731723835364,1.1061753,91540.0,91536.0,0.001715]
[1731723835574,1.10734482,91540.0,91536.0,0.001715]
[1731723835779,1.02603718,91540.0,91536.0,0.001715]
[1731723835983,0.92603718,91540.0,91536.0,0.001715]
[1731723836218,1.02603718,91540.0,91536.0,0.001715]
[1731723836857,1.02486766,91540.0,91536.0,0.001715]
[1731723837075,1.02602728,91540.0,91536.0,0.001715]
[1731723840564,1.02442628,91540.0,91536.0,0.001715]
[1731723840794,0.48682728,91540.0,91536.0,0.001715]
[1731723843063,0.011601,91537.0,91536.0,0.001715]
[1731723843294,0.25290855,91537.0,91536.0,0.001715]
[1731723843527,0.26031417,91537.0,91536.0,0.001715]
[1731723843766,0.25871317,91537.0,91536.0,0.001715]
[1731723844232,0.35871317,91537.0,91536.0,0.001715]
[1731723844884,0.35916451,91537.0,91536.0,0.001715]
[1731723845101,0.43806451,91537.0,91536.0,0.001715]
[1731723846469,0.54712706,91537.0,91536.0,0.001715]
[1731723846707,1.08632706,91537.0,91536.0,0.001715]
[1731723847372,1.13174975,91537.0,91536.0,0.001715]
[1731723847804,1.13014875,91537.0,91536.0,0.001715]
[1731723849185,1.13128119,91537.0,91536.0,0.001715]
[1731723849678,1.13288219,91537.0,91536.0,0.001715]
[1731723850549,1.02381964,91537.0,91536.0,0.001715]
[1731723850764,1.12155967,91537.0,91536.0,0.001715]
[1731723850985,1.11995867,91537.0,91536.0,0.001715]
[1731723851204,1.16975967,91537.0,91536.0,0.001715]
[1731723851415,1.07201964,91537.0,91536.0,0.001715]
[1731723851631,1.18108219,91537.0,91536.0,0.001715]
[1731723852059,1.17994975,91537.0,91536.0,0.001715]
[1731723852283,1.18107793,91537.0,91536.0,0.001715]
[1731723852506,1.17994975,91537.0,91536.0,0.001715]
[1731723853223,1.17994975,91537.0,91522.0,0.0017142]
[1731723853224,0.243863,91523.0,91522.0,0.0017142]
[1731723853450,1.14468449,91523.0,91522.0,0.0017142]
[1731723853666,1.14955396,91523.0,91522.0,0.0017142]
[1731723856393,1.24736843,91523.0,91522.0,0.0017142]
[1731723857282,1.24736843,91523.0,91500.0,0.0223351]
[1731723857283,0.120878,91510.0,91509.0,0.0001394]
[1731723857499,0.25294055,91510.0,91509.0,0.0001394]
[1731723857730,0.2577384,91510.0,91509.0,0.0001394]
[1731723858835,0.1138604,91510.0,91509.0,0.0001394]
[1731723859296,0.11625403,91510.0,91509.0,0.0001394]
[1731723859751,0.22613203,91510.0,91509.0,0.0001394]
[1731723860634,0.22613203,91510.0,91504.0,0.0465]
[1731723860635,0.001,91507.0,91504.0,0.109284]
[1731723860883,0.10906255,91506.0,91499.0,0.02151492]
[1731723861099,0.11524449,91506.0,91499.0,0.02151492]
[1731723861305,0.109283,91505.0,91499.0,0.02151492]
[1731723861517,0.21834655,91504.0,91499.0,0.02151492]
[1731723861732,0.22452371,91504.0,91499.0,0.02151492]
[1731723861914,0.11523971,91504.0,91499.0,0.02151492]
[1731723862357,0.11523971,91504.0,91499.0,0.13080492]
[1731723862582,0.11523971,91504.0,91499.0,0.02151492]
[1731723863239,0.109289,91500.0,91499.0,0.02151492]
[1731723863453,0.21835155,91500.0,91499.0,0.02151492]
[1731723863891,0.22335155,91500.0,91499.0,0.02151492]
[1731723864096,0.005,91498.0,91492.0,0.0783]
[1731723864310,0.109302,91489.0,91488.0,0.0465]
[1731723864533,0.10906255,91489.0,91488.0,0.0465]
[1731723865036,0.10906255,91489.0,91488.0,0.06834622]
[1731723865253,0.21836455,91489.0,91488.0,0.06834622]
[1731723865650,0.10906255,91489.0,91488.0,0.06834622]
[1731723866739,0.21836455,91489.0,91488.0,0.06834622]
[1731723866947,0.21836455,91489.0,91488.0,0.02184622]
[1731723870662,0.10906255,91489.0,91488.0,0.13114922]
[1731723871544,0.10906255,91489.0,91488.0,0.02184622]
[1731723871987,0.10906255,91489.0,91488.0,0.13114922]
[1731723872478,0.16438987,91496.0,91495.0,0.109295]
[1731723872720,0.27345242,91496.0,91495.0,0.109295]
[1731723873131,0.10906255,91496.0,91495.0,0.109295]
[1731723879108,0.10992065,91496.0,91495.0,0.109295]
[1731723882737,0.10992065,91496.0,91491.0,0.0017162]
[1731723882961,0.109299,91492.0,91491.0,0.0017162]
[1731723883187,0.10906255,91492.0,91491.0,0.0017162]
[1731723883418,0.21836155,91492.0,91491.0,0.0017162]
[1731723886141,0.10906255,91492.0,91491.0,0.0017162]
[1731723888612,0.10906255,91492.0,91491.0,0.1110162]